[Event "Late-Titled-Tuesday-Blitz-April-02-2024"]
[Site "Chess.com"]
[Date "2024.04.02"]
[Round "3"]
[White "Oleg_Papayan"]
[Black "DrVelja"]
[Result "1-0"]
[WhiteElo "2694"]
[BlackElo "3017"]
[TimeControl "180+1"]
[EndTime "14:29:50 PDT"]
[Termination "Oleg_Papayan won by resignation"]

1. e4 {[%clk 0:03:00.9]} 1... c5 {[%clk 0:03:00.3]} 2. Nf3 {[%clk 0:03:01.1]}
2... Nc6 {[%clk 0:03:00.1]} 3. Bb5 {[%clk 0:03:00.6]} 3... e6 {[%clk 0:03:00.3]}
4. O-O {[%clk 0:03:00]} 4... Nge7 {[%clk 0:03:00.8]} 5. Re1 {[%clk 0:03:00.2]}
5... Nd4 {[%clk 0:03:00.5]} 6. Nxd4 {[%clk 0:02:58.1]} 6... cxd4 {[%clk
0:03:01.4]} 7. c3 {[%clk 0:02:57.4]} 7... a6 {[%clk 0:03:02]} 8. Ba4 {[%clk
0:02:53.8]} 8... b5 {[%clk 0:03:02.3]} 9. Bc2 {[%clk 0:02:52.5]} 9... Nc6 {[%clk
0:03:03.2]} 10. a4 {[%clk 0:02:51.1]} 10... Bb7 {[%clk 0:03:02.1]} 11. axb5
{[%clk 0:02:49.9]} 11... axb5 {[%clk 0:03:03]} 12. Rxa8 {[%clk 0:02:50.5]} 12...
Bxa8 {[%clk 0:03:02.5]} 13. e5 {[%clk 0:02:47]} 13... Qc7 {[%clk 0:02:46]} 14.
Be4 {[%clk 0:02:42.1]} 14... d3 {[%clk 0:02:23.5]} 15. Bxd3 {[%clk 0:02:32.8]}
15... Nxe5 {[%clk 0:02:22.8]} 16. Bf1 {[%clk 0:02:25.6]} 16... Bd6 {[%clk
0:02:08.4]} 17. d4 {[%clk 0:02:20.3]} 17... Ng6 {[%clk 0:02:00.8]} 18. Qh5
{[%clk 0:02:12.3]} 18... b4 {[%clk 0:01:29]} 19. Be3 {[%clk 0:02:05.6]} 19...
O-O {[%clk 0:01:24.2]} 20. c4 {[%clk 0:01:51.8]} 20... Nf4 {[%clk 0:01:18.7]}
21. Qh4 {[%clk 0:01:48.1]} 21... Ng6 {[%clk 0:01:16.7]} 22. Qh5 {[%clk
0:01:48.2]} 22... Bf4 {[%clk 0:01:14.2]} 23. Nd2 {[%clk 0:01:35.6]} 23... Bxe3
{[%clk 0:01:14.5]} 24. fxe3 {[%clk 0:01:23.8]} 24... f5 {[%clk 0:01:14.8]} 25.
c5 {[%clk 0:01:18.2]} 25... Bd5 {[%clk 0:00:59.7]} 26. Bc4 {[%clk 0:01:11]}
26... Qc6 {[%clk 0:00:52.1]} 27. Qe2 {[%clk 0:00:50.1]} 27... Ra8 {[%clk
0:00:33.9]} 28. Nf3 {[%clk 0:00:41.1]} 28... h6 {[%clk 0:00:27.9]} 29. Rc1
{[%clk 0:00:27.5]} 29... Kh7 {[%clk 0:00:27.4]} 30. Bxd5 {[%clk 0:00:24.6]}
30... Qxd5 {[%clk 0:00:27.8]} 31. Qc4 {[%clk 0:00:25.4]} 31... Qe4 {[%clk
0:00:27.5]} 32. Re1 {[%clk 0:00:24.3]} 32... Rb8 {[%clk 0:00:25.2]} 33. b3
{[%clk 0:00:24.1]} 33... Kh8 {[%clk 0:00:25]} 34. Nd2 {[%clk 0:00:18.9]} 34...
Qc6 {[%clk 0:00:23.3]} 35. Nf3 {[%clk 0:00:19.2]} 35... Qc7 {[%clk 0:00:23]} 36.
Rc1 {[%clk 0:00:18.9]} 36... Qc6 {[%clk 0:00:22.5]} 37. Rc2 {[%clk 0:00:18.7]}
37... Kh7 {[%clk 0:00:20.1]} 38. Ra2 {[%clk 0:00:18.8]} 38... Qe4 {[%clk
0:00:20.5]} 39. Kf2 {[%clk 0:00:18.1]} 39... f4 {[%clk 0:00:20.4]} 40. exf4
{[%clk 0:00:16.8]} 40... Nxf4 {[%clk 0:00:21.3]} 41. Qc2 {[%clk 0:00:17.1]}
41... Nd3+ {[%clk 0:00:20.7]} 42. Kf1 {[%clk 0:00:17]} 42... Rf8 {[%clk
0:00:21.4]} 43. Qe2 {[%clk 0:00:13.6]} 43... Qxd4 {[%clk 0:00:22]} 44. Rd2
{[%clk 0:00:11.6]} 44... Qxc5 {[%clk 0:00:04.6]} 45. Qxd3+ {[%clk 0:00:11.6]}
45... Kh8 {[%clk 0:00:05.5]} 46. Qd6 {[%clk 0:00:10.9]} 46... Qc8 {[%clk
0:00:03.9]} 47. Qxb4 {[%clk 0:00:10.3]} 47... Qc1+ {[%clk 0:00:04.7]} 48. Ke2
{[%clk 0:00:09.9]} 48... Rc8 {[%clk 0:00:04.9]} 49. Qd4 {[%clk 0:00:09.3]} 49...
Qh1 {[%clk 0:00:05.4]} 50. Kf2 {[%clk 0:00:09.1]} 50... Rc1 {[%clk 0:00:04.1]}
51. Qd3 {[%clk 0:00:08.1]} 51... d5 {[%clk 0:00:02.9]} 52. b4 {[%clk 0:00:08]}
52... Rb1 {[%clk 0:00:02.9]} 53. b5 {[%clk 0:00:06.9]} 53... Qc1 {[%clk
0:00:02.2]} 54. Re2 {[%clk 0:00:06.8]} 54... Rb2 {[%clk 0:00:02.3]} 55. Rxb2
{[%clk 0:00:06.8]} 55... Qxb2+ {[%clk 0:00:03.2]} 56. Qe2 {[%clk 0:00:07.7]}
56... Qb4 {[%clk 0:00:02.7]} 57. Qxe6 {[%clk 0:00:07.5]} 57... Qxb5 {[%clk
0:00:02.4]} 58. Qc8+ {[%clk 0:00:07.7]} 58... Kh7 {[%clk 0:00:02.6]} 59. Qc2+
{[%clk 0:00:08.6]} 59... Kg8 {[%clk 0:00:03.5]} 60. Qd2 {[%clk 0:00:09.3]} 60...
Qc5+ {[%clk 0:00:03.8]} 61. Qd4 {[%clk 0:00:09.8]} 61... Qd6 {[%clk 0:00:04.2]}
62. Qe5 {[%clk 0:00:09.5]} 62... Qc5+ {[%clk 0:00:04.5]} 63. Kg3 {[%clk
0:00:09.4]} 63... Qc4 {[%clk 0:00:05]} 64. h3 {[%clk 0:00:08.5]} 64... Qd3
{[%clk 0:00:05.1]} 65. Qe6+ {[%clk 0:00:08.3]} 65... Kh8 {[%clk 0:00:05.3]} 66.
Qe8+ {[%clk 0:00:08.5]} 66... Kh7 {[%clk 0:00:05.7]} 67. Qe5 {[%clk 0:00:08.2]}
67... Kg8 {[%clk 0:00:06.1]} 68. Qf4 {[%clk 0:00:08.6]} 68... Kh7 {[%clk
0:00:06.2]} 69. h4 {[%clk 0:00:09.2]} 69... Qg6+ {[%clk 0:00:05.9]} 70. Qg4
{[%clk 0:00:09.4]} 70... Qd3 {[%clk 0:00:06.8]} 71. h5 {[%clk 0:00:09.8]} 71...
Kg8 {[%clk 0:00:07]} 72. Qe6+ {[%clk 0:00:09.5]} 72... Kh8 {[%clk 0:00:07.2]}
73. Kh2 {[%clk 0:00:09.9]} 73... Qc4 {[%clk 0:00:05.1]} 74. Qe8+ {[%clk
0:00:08.6]} 74... Kh7 {[%clk 0:00:05.7]} 75. Qg6+ {[%clk 0:00:09.5]} 75... Kh8
{[%clk 0:00:06.6]} 76. Kh3 {[%clk 0:00:10.2]} 76... Qc8+ {[%clk 0:00:06.4]} 77.
Qg4 {[%clk 0:00:10.1]} 77... Qe8 {[%clk 0:00:05.8]} 78. Nh4 {[%clk 0:00:10.3]}
78... Qe3+ {[%clk 0:00:05.1]} 79. g3 {[%clk 0:00:10.2]} 79... Kh7 {[%clk
0:00:02.5]} 80. Qc8 {[%clk 0:00:09]} 80... Qe2 {[%clk 0:00:02]} 81. Qf5+ {[%clk
0:00:08.2]} 81... Kg8 {[%clk 0:00:02.3]} 82. Qxd5+ {[%clk 0:00:08.1]} 82... Kh7
{[%clk 0:00:03]} 83. Qf5+ {[%clk 0:00:07.9]} 83... Kg8 {[%clk 0:00:02.8]} 84.
Qf3 {[%clk 0:00:08.6]} 84... Kh7 {[%clk 0:00:03.7]} 85. Qxe2 {[%clk 0:00:08.8]}
1-0

[Event "Late-Titled-Tuesday-Blitz-April-02-2024"]
[Site "Chess.com"]
[Date "2024.04.02"]
[Round "4"]
[White "miraitrunks"]
[Black "Mikayel99"]
[Result "0-1"]
[WhiteElo "2189"]
[BlackElo "2542"]
[TimeControl "180+1"]
[EndTime "14:31:00 PDT"]
[Termination "Mikayel99 won by resignation"]

1. e4 {[%clk 0:03:00.1]} 1... c5 {[%clk 0:02:58]} 2. Nc3 {[%clk 0:02:59.3]} 2...
g6 {[%clk 0:02:57.5]} 3. f4 {[%clk 0:02:59.4]} 3... Nc6 {[%clk 0:02:57.5]} 4.
Nf3 {[%clk 0:02:59.3]} 4... Bg7 {[%clk 0:02:58.2]} 5. Bb5 {[%clk 0:02:59.2]}
5... Nd4 {[%clk 0:02:58.5]} 6. Bc4 {[%clk 0:02:58.2]} 6... e6 {[%clk 0:02:58.9]}
7. O-O {[%clk 0:02:57.3]} 7... Ne7 {[%clk 0:02:59]} 8. d3 {[%clk 0:02:57.4]}
8... O-O {[%clk 0:02:59]} 9. Be3 {[%clk 0:02:56.7]} 9... d5 {[%clk 0:02:55.9]}
10. Bb3 {[%clk 0:02:54.4]} 10... Nxb3 {[%clk 0:02:55.5]} 11. axb3 {[%clk
0:02:54.3]} 11... d4 {[%clk 0:02:56.1]} 0-1

[Event "Late-Titled-Tuesday-Blitz-April-02-2024"]
[Site "Chess.com"]
[Date "2024.04.02"]
[Round "4"]
[White "Itay121"]
[Black "Darkdefense15"]
[Result "1-0"]
[WhiteElo "2548"]
[BlackElo "2371"]
[TimeControl "180+1"]
[EndTime "14:31:28 PDT"]
[Termination "Itay121 won by resignation"]

1. e4 {[%clk 0:03:00.9]} 1... c5 {[%clk 0:02:58.2]} 2. Nf3 {[%clk 0:03:01.2]}
2... Nc6 {[%clk 0:02:58.4]} 3. d4 {[%clk 0:03:01.2]} 3... cxd4 {[%clk
0:02:56.5]} 4. Nxd4 {[%clk 0:03:02.1]} 4... e5 {[%clk 0:02:56.8]} 5. Nb5 {[%clk
0:03:01.6]} 5... d6 {[%clk 0:02:57.4]} 6. N1c3 {[%clk 0:03:01.2]} 6... a6 {[%clk
0:02:56.1]} 7. Na3 {[%clk 0:03:01.3]} 7... Be7 {[%clk 0:02:56.5]} 8. Nd5 {[%clk
0:03:00.9]} 8... Nf6 {[%clk 0:02:55.7]} 9. Be3 {[%clk 0:02:49.8]} 9... Be6
{[%clk 0:02:50.4]} 10. Bb6 {[%clk 0:02:44.4]} 10... Qd7 {[%clk 0:02:43.2]} 11.
Nc7+ {[%clk 0:02:44]} 11... Kf8 {[%clk 0:02:43.1]} 12. Nxa8 {[%clk 0:02:43.3]}
12... Nxe4 {[%clk 0:02:44]} 13. Nc7 {[%clk 0:02:39.7]} 1-0

[Event "Late-Titled-Tuesday-Blitz-April-02-2024"]
[Site "Chess.com"]
[Date "2024.04.02"]
[Round "4"]
[White "Ar4uha"]
[Black "Zhigalko_Sergei"]
[Result "0-1"]
[WhiteElo "2594"]
[BlackElo "2877"]
[TimeControl "180+1"]
[EndTime "14:32:51 PDT"]
[Termination "Zhigalko_Sergei won by resignation"]

1. e4 {[%clk 0:02:58.2]} 1... c5 {[%clk 0:02:59.3]} 2. Nf3 {[%clk 0:02:53.4]}
2... Nc6 {[%clk 0:02:59.8]} 3. Bb5 {[%clk 0:02:40.3]} 3... Nf6 {[%clk
0:02:59.5]} 4. Nc3 {[%clk 0:02:35]} 4... Qc7 {[%clk 0:02:57.2]} 5. O-O {[%clk
0:02:33.7]} 5... Nd4 {[%clk 0:02:57.1]} 6. Bc4 {[%clk 0:02:31.9]} 6... e6 {[%clk
0:02:51.7]} 7. d3 {[%clk 0:02:32.4]} 7... a6 {[%clk 0:02:49.8]} 8. a4 {[%clk
0:02:32]} 8... Be7 {[%clk 0:02:46.8]} 9. h3 {[%clk 0:02:32.3]} 9... O-O {[%clk
0:02:46]} 10. Be3 {[%clk 0:02:31.3]} 10... Nc6 {[%clk 0:02:42.9]} 11. Re1 {[%clk
0:02:29.5]} 11... d6 {[%clk 0:02:23.4]} 12. Qd2 {[%clk 0:02:29.8]} 12... Rb8
{[%clk 0:02:16.2]} 13. Bf4 {[%clk 0:02:29.5]} 13... Nd7 {[%clk 0:02:15.8]} 14.
Bg5 {[%clk 0:02:22.2]} 14... Nde5 {[%clk 0:02:07.9]} 15. Bxe7 {[%clk 0:02:21]}
15... Nxf3+ {[%clk 0:02:05.6]} 16. gxf3 {[%clk 0:02:20.8]} 16... Qxe7 {[%clk
0:02:06.4]} 17. f4 {[%clk 0:02:20.4]} 17... Nd4 {[%clk 0:02:06.1]} 18. Re3
{[%clk 0:02:16.6]} 18... Qh4 {[%clk 0:02:03.7]} 19. Rg3 {[%clk 0:02:15.4]} 19...
Qxg3+ {[%clk 0:02:02.6]} 0-1

[Event "Late-Titled-Tuesday-Blitz-April-02-2024"]
[Site "Chess.com"]
[Date "2024.04.02"]
[Round "4"]
[White "giomar27"]
[Black "teresin05"]
[Result "1-0"]
[WhiteElo "2469"]
[BlackElo "2279"]
[TimeControl "180+1"]
[EndTime "14:33:18 PDT"]
[Termination "giomar27 won by checkmate"]

1. d4 {[%clk 0:03:00.9]} 1... d5 {[%clk 0:02:45.8]} 2. Nc3 {[%clk 0:03:01.2]}
2... Nf6 {[%clk 0:02:45.4]} 3. Bf4 {[%clk 0:03:01.1]} 3... Bf5 {[%clk
0:02:44.7]} 4. f3 {[%clk 0:02:59.3]} 4... a6 {[%clk 0:02:38.1]} 5. g4 {[%clk
0:02:59.3]} 5... Bg6 {[%clk 0:02:33.5]} 6. h4 {[%clk 0:02:59.5]} 6... h6 {[%clk
0:02:30.4]} 7. e3 {[%clk 0:02:59.4]} 7... e6 {[%clk 0:02:24.3]} 8. Bd3 {[%clk
0:02:59.4]} 8... Bxd3 {[%clk 0:01:57.9]} 9. Qxd3 {[%clk 0:02:58.8]} 9... Nbd7
{[%clk 0:01:56.7]} 10. Nge2 {[%clk 0:02:59]} 10... c5 {[%clk 0:01:55.9]} 11.
O-O-O {[%clk 0:02:59]} 11... c4 {[%clk 0:01:30.5]} 12. Qd2 {[%clk 0:02:58.8]}
12... b5 {[%clk 0:01:29.6]} 13. g5 {[%clk 0:02:58.8]} 13... hxg5 {[%clk
0:01:28.3]} 14. hxg5 {[%clk 0:02:58.2]} 14... Rxh1 {[%clk 0:01:27.1]} 15. Rxh1
{[%clk 0:02:59.1]} 15... Ng8 {[%clk 0:01:23.7]} 16. Ng3 {[%clk 0:02:59.1]} 16...
Ne7 {[%clk 0:01:16.3]} 17. e4 {[%clk 0:02:58.7]} 17... b4 {[%clk 0:01:14.1]} 18.
Nce2 {[%clk 0:02:58.4]} 18... Nb6 {[%clk 0:01:13.2]} 19. Kb1 {[%clk 0:02:54.7]}
19... a5 {[%clk 0:01:02.4]} 20. Nh5 {[%clk 0:02:54.7]} 20... g6 {[%clk
0:01:00.6]} 21. Nf6# {[%clk 0:02:51.8]} 1-0

[Event "Late-Titled-Tuesday-Blitz-April-02-2024"]
[Site "Chess.com"]
[Date "2024.04.02"]
[Round "4"]
[White "GAusal"]
[Black "Slovineanu"]
[Result "0-1"]
[WhiteElo "2266"]
[BlackElo "2467"]
[TimeControl "180+1"]
[EndTime "14:33:56 PDT"]
[Termination "Slovineanu won by resignation"]

1. d4 {[%clk 0:03:00.9]} 1... Nf6 {[%clk 0:02:57.7]} 2. Nf3 {[%clk 0:02:55.8]}
2... d5 {[%clk 0:02:56.9]} 3. Bf4 {[%clk 0:02:51.4]} 3... e6 {[%clk 0:02:56.4]}
4. e3 {[%clk 0:02:50.9]} 4... c5 {[%clk 0:02:56.4]} 5. c3 {[%clk 0:02:00.4]}
5... Bd6 {[%clk 0:02:54.5]} 6. Bxd6 {[%clk 0:01:58.5]} 6... Qxd6 {[%clk
0:02:54.1]} 7. Nbd2 {[%clk 0:01:56.8]} 7... O-O {[%clk 0:02:53.4]} 8. Ne5 {[%clk
0:01:56.5]} 8... Nbd7 {[%clk 0:02:48.7]} 9. f4 {[%clk 0:01:56.3]} 9... Rb8
{[%clk 0:02:47.1]} 10. Bd3 {[%clk 0:01:55.1]} 10... b5 {[%clk 0:02:46.7]} 11.
Ndf3 {[%clk 0:01:52.6]} 11... b4 {[%clk 0:02:45.9]} 12. O-O {[%clk 0:01:51]}
12... bxc3 {[%clk 0:02:44.9]} 13. bxc3 {[%clk 0:01:50.1]} 13... cxd4 {[%clk
0:02:42.4]} 14. cxd4 {[%clk 0:01:47.5]} 14... Ba6 {[%clk 0:02:33.8]} 15. Bxa6
{[%clk 0:01:39.5]} 15... Qxa6 {[%clk 0:02:33.1]} 16. Nxd7 {[%clk 0:01:39]} 16...
Nxd7 {[%clk 0:02:32.7]} 17. Ne5 {[%clk 0:01:36.9]} 17... Nf6 {[%clk 0:02:31.1]}
18. Qf3 {[%clk 0:01:33.9]} 18... Rb2 {[%clk 0:02:27.3]} 19. Qg3 {[%clk
0:01:32.4]} 19... Rc8 {[%clk 0:02:21.8]} 20. Qh4 {[%clk 0:01:30.6]} 20... Rcc2
{[%clk 0:02:17.1]} 21. g4 {[%clk 0:01:18.5]} 21... Qe2 {[%clk 0:02:12.8]} 22.
Qg3 {[%clk 0:01:15]} 22... Qg2+ {[%clk 0:02:11.6]} 23. Qxg2 {[%clk 0:01:14.2]}
23... Rxg2+ {[%clk 0:02:12.1]} 24. Kh1 {[%clk 0:01:14.2]} 24... Rxh2+ {[%clk
0:02:12.5]} 0-1

[Event "Late-Titled-Tuesday-Blitz-April-02-2024"]
[Site "Chess.com"]
[Date "2024.04.02"]
[Round "4"]
[White "Flaccidmoves"]
[Black "cthake"]
[Result "1-0"]
[WhiteElo "2412"]
[BlackElo "1824"]
[TimeControl "180+1"]
[EndTime "14:34:40 PDT"]
[Termination "Flaccidmoves won by resignation"]

1. c4 {[%clk 0:03:00.9]} 1... e5 {[%clk 0:02:59.2]} 2. Nc3 {[%clk 0:02:58.9]}
2... Nc6 {[%clk 0:02:59.2]} 3. e3 {[%clk 0:02:55.6]} 3... g6 {[%clk 0:02:52.6]}
4. d4 {[%clk 0:02:53.5]} 4... Bg7 {[%clk 0:02:46.3]} 5. d5 {[%clk 0:02:47.1]}
5... Nce7 {[%clk 0:02:27.8]} 6. d6 {[%clk 0:02:46.7]} 6... cxd6 {[%clk 0:02:16]}
7. Nb5 {[%clk 0:02:46.3]} 7... d5 {[%clk 0:02:00.8]} 8. Nd6+ {[%clk 0:02:41.8]}
8... Kf8 {[%clk 0:02:00.6]} 9. cxd5 {[%clk 0:02:41.5]} 9... Qa5+ {[%clk
0:01:54.2]} 10. Bd2 {[%clk 0:02:31.3]} 10... Qxd5 {[%clk 0:01:53.7]} 11. Bb4
{[%clk 0:02:24]} 11... Qxd1+ {[%clk 0:01:44]} 12. Rxd1 {[%clk 0:02:23.5]} 12...
a5 {[%clk 0:01:43.7]} 13. Ba3 {[%clk 0:02:20]} 13... Nf6 {[%clk 0:01:22.8]} 14.
Bc4 {[%clk 0:02:11.1]} 14... b5 {[%clk 0:01:09.6]} 15. Bxb5 {[%clk 0:02:06.7]}
15... Ba6 {[%clk 0:00:57.9]} 16. Bxa6 {[%clk 0:02:02.6]} 16... Rxa6 {[%clk
0:00:57.8]} 17. Nc8 {[%clk 0:01:54.2]} 17... Nd5 {[%clk 0:00:30]} 18. Rxd5
{[%clk 0:01:53]} 1-0

[Event "Late-Titled-Tuesday-Blitz-April-02-2024"]
[Site "Chess.com"]
[Date "2024.04.02"]
[Round "4"]
[White "CURRUTACO59"]
[Black "PNEPaul"]
[Result "1-0"]
[WhiteElo "2257"]
[BlackElo "1961"]
[TimeControl "180+1"]
[EndTime "14:34:42 PDT"]
[Termination "CURRUTACO59 won by resignation"]

1. Nf3 {[%clk 0:02:58.4]} 1... a6 {[%clk 0:02:27.6]} 2. d4 {[%clk 0:02:56.3]}
2... d6 {[%clk 0:02:26.3]} 3. c4 {[%clk 0:02:56]} 3... g6 {[%clk 0:02:25.6]} 4.
Nc3 {[%clk 0:02:55.2]} 4... Bg7 {[%clk 0:02:25.2]} 5. e4 {[%clk 0:02:54.3]} 5...
h6 {[%clk 0:02:25.4]} 6. g3 {[%clk 0:02:46.8]} 6... Nd7 {[%clk 0:02:25.5]} 7.
Bg2 {[%clk 0:02:46.9]} 7... e6 {[%clk 0:02:25.6]} 8. O-O {[%clk 0:02:47.1]} 8...
Ne7 {[%clk 0:02:25.5]} 9. Be3 {[%clk 0:02:46.2]} 9... O-O {[%clk 0:02:24.2]} 10.
Qd2 {[%clk 0:02:46.3]} 10... Kh7 {[%clk 0:02:23.8]} 11. Rad1 {[%clk 0:02:45.8]}
11... Nf6 {[%clk 0:02:22.7]} 12. h3 {[%clk 0:02:43.1]} 12... c6 {[%clk
0:02:19.3]} 13. e5 {[%clk 0:02:38.5]} 13... Ne8 {[%clk 0:02:14.1]} 14. Qc2
{[%clk 0:02:04.9]} 14... d5 {[%clk 0:02:12.4]} 15. c5 {[%clk 0:01:51.3]} 15...
Bd7 {[%clk 0:02:07.7]} 16. g4 {[%clk 0:01:50.6]} 16... Qc7 {[%clk 0:02:00.9]}
17. Rfe1 {[%clk 0:01:47.3]} 17... b5 {[%clk 0:01:52.7]} 18. cxb6 {[%clk
0:01:40.7]} 18... Qxb6 {[%clk 0:01:49.4]} 19. Na4 {[%clk 0:01:40.4]} 19... Qc7
{[%clk 0:01:40.1]} 20. Rc1 {[%clk 0:01:36.3]} 20... Nc8 {[%clk 0:01:33.8]} 21.
b3 {[%clk 0:01:30.5]} 21... Na7 {[%clk 0:01:32]} 22. Nc5 {[%clk 0:01:29.8]}
22... Rc8 {[%clk 0:01:12.9]} 23. Nxa6 {[%clk 0:01:27.8]} 23... Qa5 {[%clk
0:01:12.4]} 24. Nc5 {[%clk 0:01:27.6]} 24... Nb5 {[%clk 0:01:10.9]} 25. Nxd7
{[%clk 0:01:26.1]} 1-0

[Event "Late-Titled-Tuesday-Blitz-April-02-2024"]
[Site "Chess.com"]
[Date "2024.04.02"]
[Round "4"]
[White "GaiozNigalidze"]
[Black "vladgoncharov"]
[Result "1-0"]
[WhiteElo "2723"]
[BlackElo "2561"]
[TimeControl "180+1"]
[EndTime "14:34:50 PDT"]
[Termination "GaiozNigalidze won by resignation"]

1. e4 {[%clk 0:03:00.9]} 1... e6 {[%clk 0:02:59.5]} 2. d4 {[%clk 0:03:00.5]}
2... d5 {[%clk 0:02:59.7]} 3. e5 {[%clk 0:02:59.4]} 3... c5 {[%clk 0:02:59.4]}
4. c3 {[%clk 0:02:59.9]} 4... Nc6 {[%clk 0:02:59.5]} 5. Nf3 {[%clk 0:02:59.3]}
5... Nge7 {[%clk 0:02:59.5]} 6. Bb5 {[%clk 0:02:55.8]} 6... Bd7 {[%clk
0:02:57.7]} 7. Be2 {[%clk 0:02:53]} 7... Nf5 {[%clk 0:02:51.3]} 8. dxc5 {[%clk
0:02:50.7]} 8... Nh4 {[%clk 0:02:35.2]} 9. Nbd2 {[%clk 0:02:44.9]} 9... Nxg2+
{[%clk 0:02:32.7]} 10. Kf1 {[%clk 0:02:45]} 10... Nh4 {[%clk 0:02:32.9]} 11. b4
{[%clk 0:02:43.9]} 11... Ng6 {[%clk 0:02:31]} 12. c4 {[%clk 0:02:41]} 12...
Ncxe5 {[%clk 0:02:26.3]} 13. cxd5 {[%clk 0:02:41.1]} 13... exd5 {[%clk
0:02:24.9]} 14. Bb2 {[%clk 0:02:41.5]} 14... Nxf3 {[%clk 0:01:52.6]} 15. Nxf3
{[%clk 0:02:35.9]} 15... f6 {[%clk 0:01:46.9]} 16. Qd4 {[%clk 0:02:17.5]} 16...
a6 {[%clk 0:01:37.4]} 17. h4 {[%clk 0:02:16.5]} 17... Ne7 {[%clk 0:01:22.4]} 18.
h5 {[%clk 0:02:11.3]} 18... Be6 {[%clk 0:01:03.7]} 19. h6 {[%clk 0:02:08.1]}
19... Kf7 {[%clk 0:01:03.8]} 20. hxg7 {[%clk 0:01:47.7]} 20... Bxg7 {[%clk
0:01:02.8]} 21. Ng5+ {[%clk 0:01:47.9]} 1-0

[Event "Late-Titled-Tuesday-Blitz-April-02-2024"]
[Site "Chess.com"]
[Date "2024.04.02"]
[Round "4"]
[White "Narek_Ghimoyan"]
[Black "lcmil"]
[Result "1-0"]
[WhiteElo "2465"]
[BlackElo "2265"]
[TimeControl "180+1"]
[EndTime "14:35:06 PDT"]
[Termination "Narek_Ghimoyan won by resignation"]

1. d4 {[%clk 0:03:00.9]} 1... Nf6 {[%clk 0:02:59.9]} 2. c4 {[%clk 0:03:00.7]}
2... g6 {[%clk 0:02:59.9]} 3. Nc3 {[%clk 0:03:00]} 3... Bg7 {[%clk 0:03:00.3]}
4. Nf3 {[%clk 0:02:59.4]} 4... d6 {[%clk 0:03:00.8]} 5. g3 {[%clk 0:03:00]} 5...
O-O {[%clk 0:03:01.4]} 6. Bg2 {[%clk 0:03:00.6]} 6... Nc6 {[%clk 0:03:01.6]} 7.
d5 {[%clk 0:03:00.5]} 7... Na5 {[%clk 0:03:01.4]} 8. b3 {[%clk 0:03:01.1]} 8...
c5 {[%clk 0:02:47.9]} 9. Bb2 {[%clk 0:02:57]} 9... a6 {[%clk 0:02:39.9]} 10. O-O
{[%clk 0:02:54.9]} 10... Rb8 {[%clk 0:02:39.6]} 11. Qc2 {[%clk 0:02:54.7]} 11...
b5 {[%clk 0:02:38.8]} 12. Nd2 {[%clk 0:02:53.5]} 12... Bf5 {[%clk 0:02:36.5]}
13. e4 {[%clk 0:02:46.3]} 13... Bd7 {[%clk 0:02:36.7]} 14. Rab1 {[%clk
0:02:44.9]} 14... h5 {[%clk 0:02:28.9]} 15. h3 {[%clk 0:02:43.3]} 15... e6
{[%clk 0:02:24.4]} 16. Rfe1 {[%clk 0:02:37.3]} 16... exd5 {[%clk 0:02:24.1]} 17.
exd5 {[%clk 0:02:37.7]} 17... bxc4 {[%clk 0:02:17]} 18. bxc4 {[%clk 0:02:36.8]}
18... Re8 {[%clk 0:01:48.5]} 19. Ba1 {[%clk 0:02:32.6]} 19... Bf5 {[%clk
0:01:40.4]} 20. Nce4 {[%clk 0:02:27.6]} 20... Nxe4 {[%clk 0:01:30.6]} 21. Nxe4
{[%clk 0:02:26.7]} 21... Rxb1 {[%clk 0:01:13.7]} 22. Rxb1 {[%clk 0:02:22.7]}
22... Bxa1 {[%clk 0:00:45.2]} 23. Rxa1 {[%clk 0:02:23.6]} 23... Bxe4 {[%clk
0:00:43.7]} 24. Bxe4 {[%clk 0:02:22.4]} 24... Qf6 {[%clk 0:00:44.2]} 25. Rc1
{[%clk 0:02:18.7]} 25... Qd4 {[%clk 0:00:41]} 26. Bf3 {[%clk 0:02:17.8]} 26...
Rb8 {[%clk 0:00:40.3]} 27. Qc3 {[%clk 0:02:16.7]} 27... Rb2 {[%clk 0:00:31.5]}
28. Qxd4 {[%clk 0:02:13.8]} 28... cxd4 {[%clk 0:00:32.4]} 29. c5 {[%clk
0:02:13.1]} 29... dxc5 {[%clk 0:00:27.3]} 30. d6 {[%clk 0:02:11.5]} 30... Kf8
{[%clk 0:00:19.7]} 31. Rxc5 {[%clk 0:02:09.8]} 1-0

[Event "Late-Titled-Tuesday-Blitz-April-02-2024"]
[Site "Chess.com"]
[Date "2024.04.02"]
[Round "4"]
[White "Practical-Play"]
[Black "jinxy2009"]
[Result "1-0"]
[WhiteElo "2489"]
[BlackElo "2297"]
[TimeControl "180+1"]
[EndTime "14:35:28 PDT"]
[Termination "Practical-Play won by resignation"]

1. e4 {[%clk 0:03:00.9]} 1... c5 {[%clk 0:02:54.9]} 2. c3 {[%clk 0:02:56.9]}
2... Nf6 {[%clk 0:02:52.7]} 3. e5 {[%clk 0:02:56.6]} 3... Nd5 {[%clk 0:02:52.3]}
4. d4 {[%clk 0:02:57]} 4... cxd4 {[%clk 0:02:50.1]} 5. Nf3 {[%clk 0:02:56.9]}
5... Nc6 {[%clk 0:02:49.7]} 6. Bc4 {[%clk 0:02:56.3]} 6... Nb6 {[%clk
0:02:49.5]} 7. Bb3 {[%clk 0:02:56.1]} 7... d5 {[%clk 0:02:43.6]} 8. exd6 {[%clk
0:02:55.9]} 8... Qxd6 {[%clk 0:02:42.9]} 9. O-O {[%clk 0:02:56.1]} 9... Be6
{[%clk 0:02:41.6]} 10. Na3 {[%clk 0:02:56.1]} 10... Bxb3 {[%clk 0:02:17.5]} 11.
Qxb3 {[%clk 0:02:55.2]} 11... Qd5 {[%clk 0:01:47.9]} 12. Nb5 {[%clk 0:02:20.6]}
12... Qxb3 {[%clk 0:01:37.3]} 13. axb3 {[%clk 0:02:21.5]} 13... O-O-O {[%clk
0:01:16.6]} 14. Ng5 {[%clk 0:02:06.8]} 14... a6 {[%clk 0:00:34.5]} 15. Nxd4
{[%clk 0:02:01.6]} 15... Nxd4 {[%clk 0:00:20.2]} 16. cxd4 {[%clk 0:02:02.5]}
16... Rxd4 {[%clk 0:00:17.4]} 17. Be3 {[%clk 0:02:01.7]} 17... Rb4 {[%clk
0:00:15.7]} 18. Nxf7 {[%clk 0:01:55.5]} 18... Rg8 {[%clk 0:00:15.7]} 19. Rfd1
{[%clk 0:01:48.8]} 19... e6 {[%clk 0:00:12.1]} 20. Rd8+ {[%clk 0:01:47.1]} 20...
Kc7 {[%clk 0:00:10.4]} 21. Rc1+ {[%clk 0:01:47.3]} 21... Nc4 {[%clk 0:00:05.8]}
22. Rxc4+ {[%clk 0:01:47.5]} 22... Rxc4 {[%clk 0:00:05.9]} 23. bxc4 {[%clk
0:01:48.4]} 23... b6 {[%clk 0:00:04.2]} 24. Bf4+ {[%clk 0:01:45.4]} 24... Kc6
{[%clk 0:00:04.3]} 25. Bd6 {[%clk 0:01:45.7]} 1-0